fUSD/lending_fUSD_20260324
["ID","MTS","AMOUNT","RATE_DAILY","PERIOD"]
[408854149,1774341717292,-151.0,0.00047143,30]
[408854150,1774341717324,-151.0,0.00047143,30]
[408854151,1774341717360,-151.0,0.00047143,30]
[408854152,1774341717391,-636.06,0.00047143,30]
[408854153,1774341717422,-464.62,0.00047143,30]
[408854154,1774341717453,-151.0,0.00047143,30]
[408854155,1774341717482,-151.21,0.00047143,30]
[408854156,1774341717514,-151.0,0.00047143,30]
[408854157,1774341717547,-566.05,0.00047143,30]
[408854158,1774341717577,-151.0,0.00047143,30]
[408854159,1774341717607,-151.52,0.00047143,30]
[408854160,1774341717641,-151.0,0.00047143,30]
[408854161,1774341717671,-568.25,0.00047143,30]
[408854162,1774341717703,-636.06,0.00047143,30]
[408854163,1774341717732,-476.49,0.00047143,30]
[408854164,1774341717761,-566.01,0.00047143,30]
[408854165,1774341717790,-182.91,0.00047143,30]
[408854166,1774341717820,-151.0,0.00047143,30]
[408854167,1774341717849,-151.0,0.00047143,30]
[408854168,1774341717880,-151.0,0.00047143,30]
[408854169,1774341717910,-568.2,0.00047143,30]
[408854170,1774341717942,-151.0,0.00047143,30]
[408854171,1774341717975,-188.31,0.00047143,30]
[408854172,1774341718008,-568.04,0.00047143,30]
[408854173,1774341718041,-151.0,0.00047143,30]
[408854174,1774341718073,-151.0,0.00047143,30]
[408854175,1774341718103,-151.0,0.00047143,30]
[408854176,1774341718134,-151.0,0.00047143,30]
[408854177,1774341718164,-390.58,0.00047143,30]
[408854178,1774341718196,-636.02,0.00047143,30]
[408854179,1774341718228,-476.41,0.00047143,30]
[408854180,1774341718261,-182.91,0.00047143,30]
[408854181,1774341718293,-566.06,0.00047143,30]
[408854182,1774341718325,-151.0,0.00047143,30]
[408854183,1774341718356,-182.9,0.00047143,30]
[408854184,1774341718387,-476.49,0.00047143,30]
[408854185,1774341718416,-639.65,0.00047143,30]
[408854186,1774341718456,-151.0,0.00047143,30]
[408854187,1774341718490,-567.54,0.00047143,30]
[408854188,1774341718523,-151.0,0.00047143,30]
[408854189,1774341718556,-151.0,0.00047143,30]
[408854190,1774341718588,-151.0,0.00047143,30]
[408854191,1774341718620,-566.09,0.00047143,30]
[408854192,1774341718652,-390.5,0.00047143,30]
[408854193,1774341718684,-568.2,0.00047143,30]
[408854194,1774341718715,-566.05,0.00047143,30]
[408854195,1774341718746,-151.0,0.00047143,30]
[408854196,1774341718778,-151.0,0.00047143,30]
[408854197,1774341718808,-476.53,0.00047143,30]
[408854198,1774341718840,-182.91,0.00047143,30]
[408854199,1774341718872,-151.0,0.00047143,30]
[408854200,1774341718903,-151.0,0.00047143,30]
[408854201,1774341718939,-151.0,0.00047143,30]
[408854202,1774341718971,-232.48,0.00047143,30]
[408854203,1774341719002,-151.0,0.00047143,30]
[408854204,1774341719036,-636.02,0.00047143,30]
[408854205,1774341719067,-182.9,0.00047143,30]
[408854206,1774341719098,-151.0,0.00047143,30]
[408854207,1774341719131,-568.2,0.00047143,30]
[408854208,1774341719163,-565.73,0.00047143,30]
[408854209,1774341719196,-151.0,0.00047143,30]
[408854210,1774341719230,-151.0,0.00047143,30]
[408854211,1774341719264,-476.49,0.00047143,30]
[408854212,1774341719299,-389.95,0.00047143,30]
[408854213,1774341719330,-151.0,0.00047143,30]
[408854214,1774341719362,-151.0,0.00047143,30]
[408854215,1774341719394,-151.0,0.00047143,30]
[408854216,1774341719426,-636.06,0.00047143,30]
[408854217,1774341719467,-476.53,0.00047143,30]
[408854218,1774341719499,-566.05,0.00047143,30]
[408854219,1774341719533,-197.06,0.00047143,30]
[408854220,1774341719565,-151.0,0.00047143,30]
[408854221,1774341719596,-151.21,0.00047143,30]
[408854222,1774341719626,-151.0,0.00047143,30]
[408854223,1774341719657,-568.25,0.00047143,30]
[408854224,1774341719688,-200.0,0.00047143,120]
[408854225,1774341719719,-227.0,0.00047143,120]
[408854226,1774341719751,-227.0,0.00047143,120]
[408854227,1774341719782,-227.0,0.00047143,120]
[408854228,1774341719812,-227.0,0.00047143,120]
[408854229,1774341719842,-151.0,0.00047143,30]
[408854230,1774341719875,-476.49,0.00047143,30]
[408854231,1774341719907,-193.84,0.00047143,30]
[408854232,1774341719946,-636.02,0.00047143,30]
[408854233,1774341719984,-390.42,0.00047143,30]
[408854234,1774341720019,-182.9,0.00047143,30]
[408854235,1774341720053,-511.57,0.00047143,30]
[408854236,1774341720085,-151.0,0.00047143,30]
[408854237,1774341720119,-227.0,0.00047143,120]
[408854238,1774341720152,-568.2,0.00047143,30]
[408854239,1774341720186,-151.0,0.00047143,30]
[408854240,1774341720222,-227.0,0.00047143,120]
[408854241,1774341720579,-227.0,0.00047143,120]
[408854242,1774341720611,-227.0,0.00047143,120]
[408854243,1774341720643,-227.0,0.00047143,120]
[408854244,1774341720674,-227.0,0.00047143,120]
[408854245,1774341720706,-227.0,0.00047143,120]
[408854246,1774341720735,-227.0,0.00047143,120]
[408854247,1774341720765,-227.0,0.00047143,120]
[408854248,1774341720794,-227.0,0.00047143,120]
[408854249,1774341720822,-227.0,0.00047143,120]
[408854250,1774341720851,-227.0,0.00047143,120]
[408854251,1774341720881,-227.0,0.00047143,120]
[408854252,1774341720910,-227.0,0.00047143,120]
[408854253,1774341720940,-227.0,0.00047143,120]
[408854254,1774341720969,-227.0,0.00047143,120]
[408854255,1774341720999,-227.0,0.00047143,120]
[408854256,1774341721031,-444.041948,0.00047143,120]
[408854257,1774341721078,-568.2,0.00047143,30]
[408854258,1774341721113,-476.49,0.00047143,30]
[408854259,1774341721145,-392.97,0.00047143,30]
[408854260,1774341721178,-636.02,0.00047143,30]
[408854261,1774341721209,-151.0,0.00047143,30]
[408854262,1774341721243,-151.0,0.00047143,30]
[408854263,1774341721277,-566.05,0.00047143,30]
[408854264,1774341721310,-568.2,0.00047143,30]
[408854265,1774341721342,-460.26,0.00047143,30]
[408854266,1774341721372,-400.0,0.00047143,90]
[408854267,1774341721402,-151.0,0.00047143,30]
[408854268,1774341721433,-390.2,0.00047143,30]
[408854269,1774341721467,-566.09,0.00047143,30]
[408854270,1774341721496,-400.0,0.00047143,90]
[408854271,1774341721527,-185.04385054,0.00047143,90]
[408854272,1774341721563,-635.98,0.00047143,30]
[408854273,1774341721595,-182.91,0.00047143,30]
[408854274,1774341721627,-160.0,0.00047143,60]
[408854275,1774341721659,-188.06,0.00047143,30]
[408854276,1774341721693,-568.2,0.00047143,30]
[408854277,1774341721726,-635.42,0.00047143,30]
[408854278,1774341721761,-390.5,0.00047143,30]
[408854279,1774341721795,-566.09,0.00047143,30]
[408854280,1774341721829,-553.70875997,0.00047143,10]
[408854281,1774341721861,-151.0,0.00047143,30]
[408854282,1774341721894,-636.02,0.00047143,30]
[408854283,1774341721927,-500.0,0.00047143,30]
[408854284,1774341721960,-200.0,0.00047143,10]
[408854285,1774341721993,-300.0,0.00047143,10]
[408854286,1774341722026,-185.48926594,0.00047143,30]
[408854287,1774341722063,-185.48926594,0.00047143,30]
[408854288,1774341722096,-185.48926594,0.00047143,30]
[408854289,1774341722796,965.79092518,0.00047143,10]
[408854290,1774341722841,766.88832626,0.00047143,10]
[408854291,1774341725660,50000.0,0.00047143,70]
[408854292,1774341737712,-161.81252803,0.00028,60]
[408854293,1774341737747,-317.95,0.0003084,120]
[408854294,1774341737779,-163.0,0.00034572,30]
[408854295,1774341737814,-259.58756771,0.00034574,93]
[408854296,1774341737844,-317.95,0.00034695,120]
[408854297,1774341737875,-150.6926829,0.00034884,94]
[408854298,1774341737904,-166.0,0.00035572,30]
[408854299,1774341737937,-418.85055463,0.00036459,99]
[408854300,1774341737969,-185.0634637,0.00036477,66]
[408854301,1774341738003,-152.00633128,0.0003735,102]
[408854302,1774341738039,-150.0,0.00038091,20]
[408854303,1774341738076,-578.11354155,0.00038343,106]
[408854304,1774341738109,-317.95,0.00038549,120]
[408854305,1774341738141,-715.629,0.00038657,52]
[408854306,1774341738175,-242.22122813,0.00039009,72]
[408854307,1774341738216,-153.05803968,0.00039816,111]
[408854308,1774341738253,-622.29390904,0.00040227,112]
[408854309,1774341738288,-3574.0,0.0004095,60]
[408854310,1774341738320,-208.00000009,0.00040995,120]
[408854311,1774341738352,-204.0,0.00041085,60]
[408854312,1774341738385,-979.16666667,0.00041095,120]
[408854313,1774341738423,-2881.23,0.00041095,120]
[408854314,1774341738458,-242.94928349,0.00041541,82]
[408854315,1774341738492,-979.16666667,0.00041643,120]
[408854316,1774341738527,-21460.74,0.00042,120]
[408854317,1774341738561,-11988.31,0.00042,120]
[408854318,1774341738599,-730.1216762,0.00042111,120]
[408854319,1774341738639,-153.31997965,0.00042282,120]
[408854320,1774341738674,-3574.0,0.000423,60]
[408854321,1774341738708,-317.95,0.00042404,120]
[408854322,1774341738740,-150.6305,0.00042421,30]
[408854323,1774341738773,-160.67266667,0.00042428,30]
[408854324,1774341738805,-500.0,0.00042438,120]
[408854325,1774341738836,-160.67266667,0.00042439,30]
[408854326,1774341738868,-150.6305,0.00042443,30]
[408854327,1774341738903,-1990.0,0.00042465,120]
[408854328,1774341738947,-11988.31,0.000425,120]
[408854329,1774341739011,-21460.74,0.000425,120]
[408854330,1774341739287,-151.0,0.000425,120]
[408854331,1774341739320,-151.0,0.000425,120]
[408854332,1774341739359,-500.0,0.00042575,120]
[408854333,1774341739392,-176.61960845,0.000426,120]
[408854334,1774341739426,-162.47977894,0.000426,120]
[408854335,1774341739462,-500.0,0.00042712,120]
[408854336,1774341739495,-1990.0,0.00042739,120]
[408854337,1774341739532,-500.0,0.00042849,120]
[408854338,1774341739570,-21460.74,0.00043,120]
[408854339,1774341739603,-11988.31,0.00043,120]
[408854340,1774341739636,-484.85,0.00043,30]
[408854341,1774341739673,-163.54,0.00043,30]
[408854342,1774341739705,-63369.05957447,0.00043,120]
[408854343,1774341739736,-3968.65,0.00043,120]
[408854344,1774341739768,-445.71,0.00043,120]
[408854345,1774341739804,-1990.0,0.00043013,120]
[408854346,1774341739836,-1990.0,0.00043287,120]
[408854347,1774341739869,-154.63,0.00043379,30]
[408854348,1774341739901,-178.68,0.000434,30]
[408854349,1774341739940,-21460.74,0.000435,120]
[408854350,1774341740309,-11988.31,0.000435,120]
[408854351,1774341740341,-282.37150244,0.000435,120]
[408854352,1774341740377,-1990.0,0.00043561,120]
[408854353,1774341740411,-3574.0,0.0004365,60]
[408854354,1774341740443,-500.0,0.00043832,120]
[408854355,1774341740474,-500.0,0.00043832,120]
[408854356,1774341740505,-500.0,0.00043832,120]
[408854357,1774341740534,-500.0,0.00043832,120]
[408854358,1774341740565,-500.0,0.00043832,120]
[408854359,1774341740594,-500.0,0.00043832,120]
[408854360,1774341740626,-500.0,0.00043832,120]
[408854361,1774341740657,-500.0,0.00043832,120]
[408854362,1774341740687,-427.73014388,0.00043832,120]
[408854363,1774341740716,-500.0,0.00043832,120]
[408854364,1774341740745,-500.0,0.00043832,120]
[408854365,1774341740776,-500.0,0.00043832,120]
[408854366,1774341740810,-500.0,0.00043832,120]
[408854367,1774341740843,-500.0,0.00043832,120]
[408854368,1774341740877,-500.0,0.00043832,120]
[408854369,1774341740917,-477.08933041,0.00043832,120]
[408854370,1774341740955,-500.0,0.00043832,120]
[408854371,1774341740988,-500.0,0.00043832,120]
[408854372,1774341741021,-500.0,0.00043832,120]
[408854373,1774341741056,-500.0,0.00043832,120]
[408854374,1774341741088,-500.0,0.00043832,120]
[408854375,1774341741120,-500.0,0.00043832,120]
[408854376,1774341741151,-500.0,0.00043832,120]
[408854377,1774341741186,-500.0,0.00043832,120]
[408854378,1774341741219,-500.0,0.00043832,120]
[408854379,1774341741254,-500.0,0.00043832,120]
[408854380,1774341741289,-564.63654378,0.00043832,120]
[408854381,1774341741325,-911.817249,0.00043834,60]
[408854382,1774341741359,-500.0,0.00043835,120]
[408854383,1774341741391,-173.09426493,0.00043835,120]
[408854384,1774341741428,-766.31,0.00043835,120]
[408854385,1774341741460,-500.0,0.00043835,120]
[408854386,1774341741495,-500.0,0.00043835,120]
[408854387,1774341741529,-600.58,0.00043835,120]
[408854388,1774341741564,-500.0,0.00043835,120]
[408854389,1774341741597,-500.0,0.00043835,120]
[408854390,1774341741628,-500.0,0.00043835,120]
[408854391,1774341741660,-500.0,0.00043835,120]
[408854392,1774341741698,-500.0,0.00043835,120]
[408854393,1774341741736,-561.45,0.00043835,120]
[408854394,1774341741794,-500.0,0.00043835,120]
[408854395,1774341741828,-500.0,0.00043835,120]
[408854396,1774341741861,-500.0,0.00043835,120]
[408854397,1774341741894,-500.0,0.00043835,120]
[408854398,1774341741927,-500.0,0.00043835,120]
[408854399,1774341741961,-1032.07,0.00043835,120]
[408854400,1774341741994,-500.0,0.00043835,120]
[408854401,1774341742027,-564.81631333,0.00043835,120]
[408854402,1774341742058,-500.0,0.00043835,120]
[408854403,1774341742092,-500.0,0.00043835,120]
[408854404,1774341742124,-500.0,0.00043835,120]
[408854405,1774341742156,-500.0,0.00043835,120]
[408854406,1774341742188,-500.0,0.00043835,120]
[408854407,1774341742228,-500.0,0.00043835,120]
[408854408,1774341742264,-500.0,0.00043835,120]
[408854409,1774341742299,-806.09,0.00043835,120]
[408854410,1774341742330,-968.7,0.00043835,120]
[408854411,1774341742374,-500.0,0.00043835,120]
[408854412,1774341742414,-500.0,0.00043835,120]
[408854413,1774341742446,-500.0,0.00043835,120]
[408854414,1774341742479,-500.0,0.00043835,120]
[408854415,1774341742514,-500.0,0.00043835,120]
[408854416,1774341742550,-500.0,0.00043835,120]
[408854417,1774341742585,-500.0,0.00043835,120]
[408854418,1774341742619,-500.0,0.00043835,120]
[408854419,1774341742651,-500.0,0.00043835,120]
[408854420,1774341742684,-777.88,0.00043835,120]
[408854421,1774341742718,-500.0,0.00043835,120]
[408854422,1774341742751,-500.0,0.00043835,120]
[408854423,1774341742783,-500.0,0.00043835,120]
[408854424,1774341742813,-500.0,0.00043835,120]
[408854425,1774341742844,-784.79,0.00043835,120]
[408854426,1774341742874,-500.0,0.00043835,120]
[408854427,1774341742906,-500.0,0.00043835,120]
[408854428,1774341742937,-500.0,0.00043835,120]
[408854429,1774341742970,-500.0,0.00043835,120]
[408854430,1774341743002,-500.0,0.00043835,120]
[408854431,1774341743035,-500.0,0.00043835,120]
[408854432,1774341743068,-500.0,0.00043835,120]
[408854433,1774341743099,-500.0,0.00043835,120]
[408854434,1774341743132,-500.0,0.00043835,120]
[408854435,1774341743164,-500.0,0.00043835,120]
[408854436,1774341743198,-438.56078258,0.00043835,120]
[408854437,1774341743234,-500.0,0.00043835,120]
[408854438,1774341743269,-1373.12,0.00043835,120]
[408854439,1774341743304,-500.0,0.00043835,120]
[408854440,1774341743338,-225.07204268,0.00043835,120]
[408854441,1774341743370,-500.0,0.00043835,120]
[408854442,1774341743404,-500.0,0.00043835,120]
[408854443,1774341743436,-500.0,0.00043835,120]
[408854444,1774341743468,-170.77013587,0.00043835,120]
[408854445,1774341743872,-500.0,0.00043835,120]
[408854446,1774341743905,-500.0,0.00043835,120]
[408854447,1774341743937,-500.0,0.00043835,120]
[408854448,1774341743974,-500.0,0.00043835,120]
[408854449,1774341744008,-500.0,0.00043835,120]
[408854450,1774341744042,-500.0,0.00043835,120]
[408854451,1774341744075,-500.0,0.00043835,120]
[408854452,1774341744109,-500.0,0.00043835,120]
[408854453,1774341744141,-500.0,0.00043835,120]
[408854454,1774341744174,-500.0,0.00043835,120]
[408854455,1774341744210,-500.0,0.00043835,120]
[408854456,1774341744244,-2682.47,0.00043835,120]
[408854457,1774341744279,-500.0,0.00043835,120]
[408854458,1774341744320,-500.0,0.00043835,120]
[408854459,1774341744357,-1490.64,0.00043835,120]
[408854460,1774341744391,-500.0,0.00043835,120]
[408854461,1774341744428,-585.16,0.00043835,120]
[408854462,1774341744461,-638.02,0.00043835,120]
[408854463,1774341744497,-500.0,0.00043835,120]
[408854464,1774341744535,-500.0,0.00043835,120]
[408854465,1774341744568,-500.0,0.00043835,30]
[408854466,1774341744604,-500.0,0.00043835,120]
[408854467,1774341744641,-500.0,0.00043835,120]
[408854468,1774341744674,-500.0,0.00043835,120]
[408854469,1774341744704,-500.0,0.00043835,120]
[408854470,1774341744736,-500.0,0.00043835,120]
[408854471,1774341744767,-500.0,0.00043835,120]
[408854472,1774341744799,-500.0,0.00043835,120]
[408854473,1774341744830,-557.26144502,0.00043835,120]
[408854474,1774341744863,-500.0,0.00043835,120]
[408854475,1774341744895,-532.6,0.00043835,120]
[408854476,1774341744931,-500.0,0.00043835,120]
[408854477,1774341744964,-172.10305545,0.00043835,120]
[408854478,1774341744999,-500.0,0.00043835,120]
[408854479,1774341745032,-500.0,0.00043835,120]
[408854480,1774341745065,-500.0,0.00043835,120]
[408854481,1774341745097,-500.0,0.00043835,120]
[408854482,1774341745129,-500.0,0.00043835,120]
[408854483,1774341745162,-500.0,0.00043835,120]
[408854484,1774341745196,-554.87806344,0.00043835,120]
[408854485,1774341745236,-500.0,0.00043835,60]
[408854486,1774341745268,-500.0,0.00043835,120]
[408854487,1774341745304,-500.0,0.00043835,120]
[408854488,1774341745340,-236.21479282,0.00043835,120]
[408854489,1774341745372,-500.0,0.00043835,120]
[408854490,1774341745405,-500.0,0.00043835,120]
[408854491,1774341745439,-500.0,0.00043835,120]
[408854492,1774341745472,-842.73,0.00043835,120]
[408854493,1774341745503,-596.08,0.00043835,120]
[408854494,1774341745534,-500.0,0.00043835,120]
[408854495,1774341745564,-500.0,0.00043835,120]
[408854496,1774341745597,-500.0,0.00043835,120]
[408854497,1774341745627,-500.0,0.00043835,120]
[408854498,1774341745657,-500.0,0.00043835,120]
[408854499,1774341745687,-260.58681559,0.00043835,120]
[408854500,1774341745717,-500.0,0.00043835,120]
[408854501,1774341745746,-500.0,0.00043835,120]
[408854502,1774341745784,-480.24009178,0.00043835,120]
[408854503,1774341745823,-500.0,0.00043835,120]
[408854504,1774341745858,-500.0,0.00043835,120]
[408854505,1774341745890,-500.0,0.00043835,120]
[408854506,1774341745922,-500.0,0.00043835,120]
[408854507,1774341745965,-500.0,0.00043835,120]
[408854508,1774341745999,-500.0,0.00043835,120]
[408854509,1774341746033,-500.0,0.00043835,120]
[408854510,1774341746066,-500.0,0.00043835,120]
[408854511,1774341746100,-500.0,0.00043835,120]
[408854512,1774341746134,-500.0,0.00043835,120]
[408854513,1774341746169,-500.0,0.00043835,120]
[408854514,1774341746201,-500.0,0.00043835,120]
[408854515,1774341746238,-500.0,0.00043835,120]
[408854516,1774341746273,-500.0,0.00043835,120]
[408854517,1774341746307,-276.95934338,0.00043835,120]
[408854518,1774341746348,-500.0,0.00043835,120]
[408854519,1774341746380,-500.0,0.00043835,120]
[408854520,1774341746413,-500.0,0.00043835,30]
[408854521,1774341746445,-500.0,0.00043835,120]
[408854522,1774341746477,-500.0,0.00043835,120]
[408854523,1774341746510,-500.0,0.00043835,120]
[408854524,1774341746542,-500.0,0.00043835,120]
[408854525,1774341746580,-796.12,0.00043835,120]
[408854526,1774341746613,-500.0,0.00043835,120]
[408854527,1774341746647,-500.0,0.00043835,120]
[408854528,1774341746679,-500.0,0.00043835,120]
[408854529,1774341746712,-500.0,0.00043835,120]
[408854530,1774341746748,-500.0,0.00043835,120]
[408854531,1774341746781,-500.0,0.00043835,120]
[408854532,1774341746815,-500.0,0.00043835,120]
[408854533,1774341746850,-500.0,0.00043835,120]
[408854534,1774341746887,-500.0,0.00043835,30]
[408854535,1774341746920,-500.0,0.00043835,120]
[408854536,1774341746952,-500.0,0.00043835,120]
[408854537,1774341746985,-349.05190349,0.00043835,120]
[408854538,1774341747020,-500.0,0.00043835,120]
[408854539,1774341747054,-500.0,0.00043835,120]
[408854540,1774341747100,-500.0,0.00043835,120]
[408854541,1774341747691,-333.40471676,0.00043835,120]
[408854542,1774341747738,-500.0,0.00043835,120]
[408854543,1774341747773,-500.0,0.00043835,120]
[408854544,1774341747809,-518.09,0.00043835,120]
[408854545,1774341747844,-616.8,0.00043835,120]
[408854546,1774341747877,-216.99900126,0.00043835,120]
[408854547,1774341747911,-500.0,0.00043835,120]
[408854548,1774341747944,-862.31,0.00043835,120]
[408854549,1774341747978,-500.0,0.00043835,120]
[408854550,1774341748013,-500.0,0.00043835,120]
[408854551,1774341748046,-500.0,0.00043835,120]
[408854552,1774341748078,-500.0,0.00043835,120]
[408854553,1774341748111,-500.0,0.00043835,120]
[408854554,1774341748145,-500.0,0.00043835,120]
[408854555,1774341748178,-500.0,0.00043835,120]
[408854556,1774341748214,-500.0,0.00043835,120]
[408854557,1774341748252,-613.45942182,0.00043835,120]
[408854558,1774341748285,-500.0,0.00043835,120]
[408854559,1774341748317,-500.0,0.00043835,60]
[408854560,1774341748347,-500.0,0.00043835,120]
[408854561,1774341748379,-500.0,0.00043835,120]
[408854562,1774341748411,-640.29869299,0.00043835,120]
[408854563,1774341748442,-500.0,0.00043835,120]
[408854564,1774341748474,-500.0,0.00043835,120]
[408854565,1774341748504,-500.0,0.00043835,120]
[408854566,1774341748538,-500.0,0.00043835,120]
[408854567,1774341748570,-500.0,0.00043835,120]
[408854568,1774341748602,-517.39,0.00043835,120]
[408854569,1774341748634,-537.23,0.00043835,120]
[408854570,1774341748667,-500.0,0.00043835,120]
[408854571,1774341748699,-500.0,0.00043835,30]
[408854572,1774341748731,-500.0,0.00043835,120]
[408854573,1774341748762,-1950.98,0.00043835,120]
[408854574,1774341748793,-500.0,0.00043835,120]
[408854575,1774341748827,-828.22,0.00043835,120]
[408854576,1774341748862,-500.0,0.00043835,120]
[408854577,1774341748896,-595.8,0.00043835,120]
[408854578,1774341748929,-500.0,0.00043835,120]
[408854579,1774341748965,-500.0,0.00043835,120]
[408854580,1774341749001,-613.54,0.00043835,120]
[408854581,1774341749041,-500.0,0.00043835,120]
[408854582,1774341749076,-500.0,0.00043835,120]
[408854583,1774341749111,-500.0,0.00043835,120]
[408854584,1774341749148,-500.0,0.00043835,120]
[408854585,1774341749182,-500.0,0.00043835,120]
[408854586,1774341749219,-500.0,0.00043835,120]
[408854587,1774341749255,-500.0,0.00043835,120]
[408854588,1774341749288,-500.0,0.00043835,120]
[408854589,1774341749323,-500.0,0.00043835,30]
[408854590,1774341749357,-500.0,0.00043835,120]
[408854591,1774341749390,-500.0,0.00043835,120]
[408854592,1774341749423,-500.0,0.00043835,120]
[408854593,1774341749456,-500.0,0.00043835,120]
[408854594,1774341749487,-500.0,0.00043835,120]
[408854595,1774341749518,-500.0,0.00043835,120]
[408854596,1774341749550,-500.0,0.00043835,120]
[408854597,1774341749581,-500.0,0.00043835,120]
[408854598,1774341749611,-500.0,0.00043835,120]
[408854599,1774341749641,-500.0,0.00043835,120]
[408854600,1774341749672,-500.0,0.00043835,120]
[408854601,1774341749702,-500.0,0.00043835,120]
[408854602,1774341749732,-2958.91,0.00043835,120]
[408854603,1774341749761,-500.0,0.00043835,120]
[408854604,1774341749792,-559.67,0.00043835,120]
[408854605,1774341749822,-500.0,0.00043835,120]
[408854606,1774341749853,-500.0,0.00043835,120]
[408854607,1774341749884,-500.0,0.00043835,120]
[408854608,1774341749916,-500.0,0.00043835,120]
[408854609,1774341749947,-755.16,0.00043835,120]
[408854610,1774341749982,-500.0,0.00043835,120]
[408854611,1774341750014,-500.0,0.00043835,120]
[408854612,1774341750048,-500.0,0.00043835,120]
[408854613,1774341750078,-500.0,0.00043835,120]
[408854614,1774341750109,-500.0,0.00043835,120]
[408854615,1774341750140,-500.0,0.00043835,120]
[408854616,1774341750172,-500.0,0.00043835,120]
[408854617,1774341750203,-500.0,0.00043835,120]
[408854618,1774341750239,-500.0,0.00043835,120]
[408854619,1774341750270,-500.0,0.00043835,120]
[408854620,1774341750303,-500.0,0.00043835,120]
[408854621,1774341750335,-500.0,0.00043835,120]
[408854622,1774341750365,-500.0,0.00043835,120]
[408854623,1774341750394,-500.0,0.00043835,60]
[408854624,1774341750424,-500.0,0.00043835,120]
[408854625,1774341750454,-500.0,0.00043835,120]
[408854626,1774341750485,-500.0,0.00043835,120]
[408854627,1774341750516,-500.0,0.00043835,120]
[408854628,1774341750547,-500.0,0.00043835,120]
[408854629,1774341750578,-500.0,0.00043835,120]
[408854630,1774341750607,-500.0,0.00043835,120]
[408854631,1774341750636,-1037.12,0.00043835,120]
[408854632,1774341750665,-500.0,0.00043835,120]
[408854633,1774341750695,-1087.57,0.00043835,120]
[408854634,1774341750723,-500.0,0.00043835,120]
[408854635,1774341750752,-500.0,0.00043835,120]
[408854636,1774341750781,-500.0,0.00043835,120]
[408854637,1774341751050,-500.0,0.00043835,120]
[408854638,1774341751082,-363.49062729,0.00043835,120]
[408854639,1774341751112,-500.0,0.00043835,120]
[408854640,1774341751141,-500.0,0.00043835,120]
[408854641,1774341751170,-602.36030683,0.00043835,120]
[408854642,1774341751201,-1059.95,0.00043835,120]
[408854643,1774341751236,-564.15,0.00043835,120]
[408854644,1774341751270,-500.0,0.00043835,120]
[408854645,1774341751303,-500.0,0.00043835,120]
[408854646,1774341751335,-249.63765274,0.00043835,120]
[408854647,1774341751368,-500.0,0.00043835,120]
[408854648,1774341751401,-500.0,0.00043835,120]